[Event "IV Estrellas 2022"]
[Site "La Palma"]
[Date "2022.08.06"]
[Round "1.1"]
[White "Pulvett Marin, Daniel Eduardo"]
[Black "Guerrero Orihuela, Jose Luis"]
[Result "1-0"]
[ECO "E11"]
[WhiteElo "2523"]
[BlackElo "1858"]
[Annotator "TA"]
[PlyCount "61"]
[EventDate "2022.08.06"]
[EventType "swiss"]
[EventCountry "ESP"]
[SourceTitle "playchess.com"]
[Source "ChessBase"]
[SourceQuality "1"]
[TimeControl "5400+30"]

{[%evp 13,61,13,39,19,49,51,93,95,110,104,98,98,99,98,101,100,103,100,101,62,95,83,237,227,243,245,250,246,253,243,246,246,347,350,340,347,346,341,373,374,544,543,533,533,629,593,2160,1005,2899,1691]} 1. d4 {[%emt 1:31:00]} Nf6 {[%emt 1:31:00]} 2. Nf3 {[%emt 0:00:30]} e6 {[%emt 0:00:30]} 3. c4 {[%emt 0:00:30]} Bb4+ {[%emt 0:00:30]} 4. Bd2 {[%emt 0:00:30]} Bxd2+ {[%emt 0:00:30]} 5. Qxd2 {[%emt 0:00:30]} d5 {[%emt 0:00:30]} 6. Nc3 {[%emt 0:00:30]} O-O {[%emt 0:00:30]} 7. e3 {[%emt 0:00:30]} Nc6 {[%emt 0:00:30]} 8. Be2 {[%emt 0:00:30] E11: Bogo-Indian.} Ne4 {[%emt 0:00:30] [#]} 9. Qc2 $146 {[%emt 0:00:30]} ({Predecessor:} 9. Nxe4 dxe4 10. Ng1 e5 11. d5 Ne7 12. f3 Bf5 13. fxe4 Bxe4 14. Bd3 Bxg2 15. Qxg2 g6 {1-0 (28) Braga,V (1732)-Terra,E (1813) Brasilia 2016}) 9... f5 {[%emt 0:00:30]} 10. cxd5 {[%emt 0:00:30] White is better.} Nb4 {[%emt 0:00:30]} 11. Qb3 {[%emt 0:00:30]} Nxc3 {[%emt 0:00:30][%mdl 64] [#] Remove Defender} 12. bxc3 {[%emt 0:00:30]} Nxd5 {[%emt 0:00:30]} 13. O-O {[%emt 0:00:30]} b6 {[%emt 0:00:30]} 14. Ne5 {[%emt 0:00:30]} Bb7 {[%emt 0:00:30]} 15. Bf3 {[%emt 0:00:30] Hoping for c4.} Rb8 {[%emt 0:00:30]} 16. Rac1 {[%emt 0:00:30]} Re8 {[%emt 0:00:30]} 17. Rfd1 {[%emt 0:00:30] White is more active.} Nf6 $2 {[%emt 0:00:30] [#] This move loses the game for Black.} (17... Ba8 $16) 18. Bc6 $1 $18 {[%emt 0:00:30]} Re7 {[%emt 0:00:30]} 19. Bxb7 {[%emt 0:00:30]} Rxb7 {[%emt 0:00:30]} 20. Nc6 {[%emt 0:00:30][%csl LRd8,LRe7]} Qd7 {[%emt 0:00:30]} 21. Nxe7+ {[%emt 0:00:30]} Qxe7 {[%emt 0:00:30]} 22. d5 {[%emt 0:00:30]} exd5 {[%emt 0:00:30]} (22... Kf7 {is a better defense.} 23. Qc4 exd5) 23. Rxd5 {[%emt 0:00:30][%cal Rd5d8]} Kh8 {[%emt 0:00:30]} 24. Rxf5 {[%emt 0:00:30]} c5 {[%emt 0:00:30]} 25. Rd1 {[%emt 0:00:30]} Rd7 {[%emt 0:00:30]} 26. h3 {[%emt 0:00:30]} h6 {[%emt 0:00:30]} (26... Rb7 $142 27. Qa4 g6) 27. Rxd7 {White is clearly winning.} Qxd7 {[%emt 0:00:30]} 28. Re5 {[%emt 0:01:00]} Qd2 {[%emt 0:00:30]} 29. Qf7 {[%emt 0:00:30] And now Re7 would win.} Qe1+ {[%emt 0:00:30]} 30. Kh2 {[%emt 0:00:30] White wants to mate with Re7.} Qxf2 {[%emt 0:00:30]} 31. Re7 {[%emt 0:00:30] Weighted Error Value: White=0.06 (flawless) /Black=0.38} 1-0

[Event "IV Estrellas 2022"]
[Site "La Palma"]
[Date "2022.08.06"]
[Round "1.2"]
[White "Ramirez Maillo, Juan Adonay"]
[Black "Martinez Duany, Lelys Stanley"]
[Result "0-1"]
[ECO "B04"]
[WhiteElo "1853"]
[BlackElo "2497"]
[Annotator "TA"]
[PlyCount "98"]
[EventDate "2022.08.06"]
[EventType "swiss"]
[EventCountry "ESP"]
[SourceTitle "playchess.com"]
[Source "ChessBase"]
[SourceQuality "1"]
[TimeControl "5400+30"]

{[%evp 21,98,0,4,-64,0,0,50,0,51,0,39,27,54,49,39,-40,-74,-92,-98,-105,-113,-116,-92,-97,-33,-41,-35,-68,-43,-82,0,-142,-131,-151,-134,-142,-74,-77,-78,-76,-77,-77,-77,-77,-77,-79,-74,-222,-220,-250,-241,-234,-230,-310,-301,-316,-307,-298,-291,-331,-332,-684,-684,-787,-488,-1007,-979,-720,-710,-701,-1646,-1469,-1327,-1150,-1053,-1120,-1132,-1964,-1155]} 1. e4 {[%emt 0:00:03][%cal Be2e4,Be4e5][%mdl 32]} Nf6 {[%emt 0:01:16]} 2. e5 {[%emt 0:00:42]} Nd5 {[%emt 0:00:05]} 3. d4 {[%emt 0:00:06]} d6 {[%emt 0:00:05]} 4. Nf3 {[%emt 0:00:25]} g6 {[%emt 0:00:41]} 5. c4 {[%emt 0:00:20]} Nb6 {[%emt 0:00:06]} 6. Be2 {[%emt 0:00:27]} Bg7 {[%emt 0:00:06]} 7. exd6 {[%emt 0:00:22]} cxd6 {[%emt 0:00:11]} 8. O-O {[%emt 0:00:09]} O-O {[%emt 0:00:09]} 9. Nc3 {[%emt 0:00:34]} Bg4 {[%emt 0:00:40]} 10. h3 {[%emt 0:01:34]} Bxf3 {[%emt 0:03:14]} 11. Bxf3 {[%emt 0:00:35]} Nc6 {[%emt 0:00:02]} 12. d5 {[%emt 0:04:03] [#] B04: Alekhine's Defence: 4 Nf3.} (12. c5 $11 dxc5 13. dxc5) 12... Nd4 $146 {[%emt 0:01:20]} (12... Ne5 $15) ({Predecessor:} 12... Ne5 13. Be2 Nexc4 14. a4 Rc8 15. a5 Nd7 16. Qb3 Nxa5 17. Qb4 b6 18. Bd2 Nc5 19. Ra3 a6 {½-½ (109) Oltean,C (2001)-Lazar,I (1941) Chess.com INT 2020}) 13. b3 $1 $11 {[%emt 0:01:00]} a5 {[%emt 0:04:06]} (13... e5 $11) 14. a4 {[%emt 0:01:30]} ({Better is} 14. Rb1 $14) 14... Nd7 {[%emt 0:00:27]} (14... e5 $11) 15. Ba3 {[%emt 0:01:52]} (15. Rb1 $14) 15... Ne5 {[%emt 0:04:29] Pair of Knights!} 16. Be2 {[%emt 0:03:39]} f5 {[%emt 0:05:08][%cal Of5f4]} 17. f4 {[%emt 0:02:26]} (17. Qxd4 $2 Nf3+ $1 {[%mdl 512]} 18. Bxf3 Bxd4 $19) 17... Nd7 {[%emt 0:00:39]} 18. Nb5 {[%emt 0:10:03]} (18. Rb1 $14) 18... Qb6 {[%emt 0:01:42]} 19. Kh1 {[%emt 0:02:02]} Nxb5 {[%emt 0:00:22]} (19... Nxe2 $6 20. Qxe2 Bxa1 21. Rxa1 $11) 20. axb5 {[%emt 0:00:07]} Bxa1 {[%emt 0:00:52] Black is more active.} 21. Qxa1 {[%emt 0:00:06]} Qe3 {[%emt 0:00:33]} 22. Qd1 {[%emt 0:01:28]} Nf6 {[%emt 0:01:05]} (22... Nc5 $17 {Threatens to win with ...Ne4.} 23. Rf3 Qe4) 23. Rf3 $15 {[%emt 0:00:59]} Qb6 {[%emt 0:01:23]} 24. Bb2 {[%emt 0:01:42]} a4 {[%emt 0:01:16]} 25. bxa4 {[%emt 0:01:25]} Qa5 {[%emt 0:01:50]} ({Black should try} 25... Qc5 $17) 26. Bc3 {[%emt 0:03:41]} (26. Re3 $11) 26... Qxa4 $17 {[%emt 0:00:41]} 27. Qd4 {[%emt 0:00:51]} Qa3 {[%emt 0:01:52]} 28. Re3 {[%emt 0:04:29]} Qc1+ {[%emt 0:00:15]} (28... Kf7 $142 {...Qc5 is the strong threat.} 29. Re6 Ke8) 29. Kh2 {[%emt 0:00:36]} Ra3 {[%emt 0:00:31]} 30. Bd2 {[%emt 0:06:05]} Qa1 {[%emt 0:01:07]} 31. Bc3 {[%emt 0:06:10] [#]} (31. Qxa1 $2 Rxa1 32. Rxe7 Re8 33. Rxe8+ Nxe8 $19) 31... Rxc3 {[%emt 0:00:06]} 32. Qxc3 {[%emt 0:00:34]} Qxc3 {[%emt 0:00:09]} 33. Rxc3 {[%emt 0:00:02][%mdl 4096] Endgame [#] KRB-KRN} Ra8 $1 {[%emt 0:00:06] Against Ra3} 34. c5 {[%emt 0:02:20] Loses the game.} (34. Bd3 $17) 34... Ne4 $19 {[%emt 0:00:12]} ({Worse is} 34... Nxd5 35. Bc4 e6 36. Bxd5 exd5 37. c6 bxc6 38. Rxc6 $11) 35. Re3 {[%emt 0:01:11]} dxc5 {[%emt 0:00:08]} 36. Bf3 {[%emt 0:00:53]} Ra4 {[%emt 0:00:08]} 37. Bxe4 {[%emt 0:01:38]} Rxe4 {[%emt 0:00:29] KR-KR} ({Inferior is} 37... fxe4 38. b6 $17) 38. Ra3 {[%emt 0:01:14]} Rb4 {[%emt 0:00:18]} ({But not} 38... Rxf4 $2 39. Ra7 $17) 39. Ra8+ {[%emt 0:00:57]} Kf7 {[%emt 0:00:11]} 40. Rh8 {[%emt 0:00:17]} Rxb5 {[%emt 0:00:27]} 41. Rxh7+ $2 {[%emt 0:00:06]} (41. Rc8) 41... Ke8 {[%emt 0:00:32] Black is clearly winning.} 42. Rg7 {[%emt 0:00:05]} Rb6 {[%emt 0:00:11]} 43. g4 {[%emt 0:02:28]} (43. Rg8+ $142 Kd7 44. Kg3) 43... fxg4 {[%emt 0:00:19]} 44. hxg4 {[%emt 0:00:03]} c4 {[%emt 0:00:27]} 45. Rg8+ {[%emt 0:00:22]} Kd7 {[%emt 0:00:08] ( -> ...c3)} 46. Ra8 {[%emt 0:01:18]} Ra6 {[%emt 0:01:20]} 47. Rb8 {[%emt 0:01:10]} b6 {[%emt 0:00:54] White must now prevent ...c3.} 48. Rb7+ {[%emt 0:00:11]} Kd6 {[%emt 0:00:09] And now ...c3 would win.} 49. f5 {[%emt 0:00:47]} gxf5 {[%emt 1:12:33] Weighted Error Value: White=0.57/Black=0.27 (precise)} 0-1

[Event "IV Estrellas 2022"]
[Site "La Palma"]
[Date "2022.08.06"]
[Round "1.3"]
[White "Kurajica, Bojan"]
[Black "Meneses Arenas, Mikel"]
[Result "1/2-1/2"]
[ECO "A49"]
[WhiteElo "2525"]
[BlackElo "1807"]
[Annotator "TA"]
[PlyCount "66"]
[EventDate "2022.08.06"]
[EventType "swiss"]
[EventCountry "ESP"]
[SourceTitle "playchess.com"]
[Source "ChessBase"]
[SourceQuality "1"]
[TimeControl "5400+30"]

{[%evp 12,66,81,77,72,31,31,6,45,45,70,54,70,43,52,18,57,57,78,91,83,77,93,96,97,18,15,9,201,199,194,194,185,187,183,183,266,233,340,323,518,289,287,301,295,287,281,208,199,0,0,0,0,0,0,0,0]} 1. Nf3 {[%emt 0:00:05]} Nf6 {[%emt 0:00:11]} 2. d4 {[%emt 0:00:07]} g6 {[%emt 0:00:11]} 3. g3 {[%emt 0:00:09]} Bg7 {[%emt 0:00:18]} 4. Bg2 {[%emt 0:00:04]} O-O {[%emt 0:01:15]} 5. O-O {[%emt 0:00:06]} c5 {[%emt 0:02:35]} 6. dxc5 {[%emt 0:01:31]} Na6 {[%emt 0:01:28] [#]} 7. Be3 $1 {[%emt 0:01:51]} Qc7 {[%emt 0:11:25] A49: 1 d4 Nf6 2 Nf3 g6 3 g3: Anti-King's Indian systems.} 8. c4 {[%emt 0:00:37] Hoping for Nc3.} Nxc5 {[%emt 0:04:14]} 9. Nc3 {[%emt 0:00:12] Threatens to win with Nb5.} d6 {[%emt 0:03:38]} 10. Rc1 {[%emt 0:01:30]} a5 {[%emt 0:03:51] [#]} 11. Nd4 $146 {[%emt 0:04:53]} ({Predecessor:} 11. b3 Bd7 12. Nd4 Qc8 13. Qd2 Bh3 14. Rfd1 Bxg2 15. Kxg2 Nce4 16. Nxe4 Nxe4 17. Qc2 {1-0 (74) Meier,G (2648)-Bejtovic,J (2370) Sweden 2016}) 11... Bd7 {[%emt 0:01:39]} 12. h3 {[%emt 0:03:23]} Bc6 {[%emt 0:07:41]} 13. f3 {[%emt 0:05:58]} Rfd8 {[%emt 0:08:45]} 14. Bf2 {[%emt 0:00:23]} (14. Nxc6 bxc6 15. b3 Nfd7 $11) 14... e6 {[%emt 0:05:18]} 15. e4 {[%emt 1:17:11]} Qe7 {[%emt 0:01:55]} 16. Qe2 {[%emt 0:00:00]} Nh5 {[%emt 0:04:55]} 17. Rcd1 {[%emt 0:00:00]} Be5 {[%emt 0:13:27]} 18. Nxc6 {[%emt 0:00:00]} (18. Kh2 $16) 18... bxc6 $11 {[%emt 0:00:42]} 19. f4 {[%emt 0:00:00]} Bxf4 {[%emt 0:08:40]} 20. gxf4 $18 {[%emt 0:00:00]} Nxf4 {[%emt 0:00:08]} 21. Qf3 {[%emt 0:00:00]} e5 {[%emt 0:00:56]} 22. Rd2 {[%emt 0:00:00]} Nce6 {[%emt 0:05:03]} 23. Rfd1 {[%emt 0:00:00]} f5 {[%emt 0:01:50]} (23... a4 $142 24. Bf1 Ng5) 24. Kh1 {[%emt 0:00:00]} ({Don't play} 24. exf5 gxf5 25. Qxc6 Rac8 $18) 24... Kh8 {[%emt 0:03:46]} (24... Nxg2 $142 25. Qxg2 Nf4) 25. Bb6 {[%emt 0:00:00]} Rd7 {[%emt 0:02:20]} (25... Nxg2 {was worth a try.} 26. Bxd8 (26. Kxg2 Rdb8 $16) (26. exf5 Nh4 $11) 26... Rxd8) 26. c5 {[%emt 0:00:00]} fxe4 {[%emt 0:02:25]} 27. Qxe4 {[%emt 0:00:00]} d5 {[%emt 0:01:32]} 28. Qxe5+ {[%emt 0:00:00]} Kg8 {[%emt 0:00:05]} 29. Rf1 {[%emt 0:00:00]} Rf8 {[%emt 0:00:39]} 30. Rf3 $2 {[%emt 0:07:30]} (30. Nd1 $18) 30... Rf5 $1 $11 {[%emt 0:00:16] The position is equal.} 31. Qb8+ {[%emt 0:00:00]} Rf8 $1 {[%emt 0:00:49]} 32. Qe5 {[%emt 0:00:00] [#] And now Ne2 would win.} Rf5 $1 {[%emt 0:00:04]} 33. Qb8+ {[%emt 0:00:00]} Rf8 $1 {[%emt 0:00:03] Weighted Error Value: White=0.34/Black=0.27 (precise)} 1/2-1/2

[Event "IV Estrellas 2022"]
[Site "La Palma"]
[Date "2022.08.06"]
[Round "1.4"]
[White "Anson Casaos, Alejandro"]
[Black "Del Rio De Angelis, Salvador G."]
[Result "0-1"]
[ECO "B00"]
[WhiteElo "1796"]
[BlackElo "2442"]
[Annotator "TA"]
[PlyCount "70"]
[EventDate "2022.08.06"]
[EventType "swiss"]
[EventCountry "ESP"]
[SourceTitle "playchess.com"]
[Source "ChessBase"]
[SourceQuality "1"]
[TimeControl "5400+30"]

{[%evp 9,70,-19,8,-42,-48,-56,-54,-81,-67,-69,-59,-116,-115,-115,-106,-127,-100,-106,-71,-130,-96,-124,-103,-161,-160,-242,-221,-231,-208,-291,-193,-205,-206,-200,-193,-182,-197,-198,-179,-168,-177,-167,-162,-169,-158,-208,-227,-683,-616,-596,-585,-632,-518,-767,-758,-870,-870,-860,-858,-806,-795,-780,-223]} 1. f4 {[%emt 0:00:10]} b6 {[%emt 0:03:05]} 2. e4 {[%emt 0:00:50]} Bb7 {[%emt 0:00:13]} 3. Nc3 {[%emt 0:00:54]} c5 {[%emt 0:01:23]} 4. Bc4 {[%emt 0:03:34]} e6 {[%emt 0:00:52]} 5. Nf3 {[%emt 0:00:45]} a6 {[%emt 0:00:20]} 6. a4 {[%emt 0:08:21] B00: Queen's Fianchetto Defence, Nimzowitsch Defence.} (6. d3 $11) 6... d5 $15 {[%emt 0:01:13]} 7. exd5 {[%emt 0:00:56]} exd5 {[%emt 0:00:09]} 8. Qe2+ {[%emt 0:06:19] Black is slightly better.} Be7 $1 {[%emt 0:00:16]} 9. Ba2 {[%emt 0:00:31]} Nf6 {[%emt 0:00:19]} 10. d3 {[%emt 0:03:03]} (10. g4 $15) 10... O-O $17 {[%emt 0:01:44]} 11. O-O {[%emt 0:00:40]} Nc6 {[%emt 0:00:46]} 12. Nd1 {[%emt 0:16:52] [#]} Bd6 $146 {[%emt 0:02:02]} ({Predecessor:} 12... Re8 13. Qf2 b5 14. c3 c4 15. d4 Ne4 16. Qc2 b4 17. Bxc4 Nxd4 18. Nxd4 dxc4 {0-1 (48) Hewitt,S-Stokes,I (2044) Gibraltar 2007}) 13. c3 {[%emt 0:01:11]} Qc7 {[%emt 0:01:00]} 14. Qd2 {[%emt 0:06:29]} ({White should try} 14. Ne3) 14... Ne7 {[%emt 0:04:38][%cal Od5d4] Black is more active.} 15. Nf2 {[%emt 0:03:54]} Ng6 {[%emt 0:00:12][%cal Rg6f4]} 16. f5 {[%emt 0:01:24]} (16. g3 $17) 16... Ne7 $19 {[%emt 0:04:30][%cal Bg6e7,Be7f5,Bf5e3][%mdl 32]} 17. b4 {[%emt 0:00:45]} (17. d4 $17 {was called for.}) 17... Nxf5 {[%emt 0:00:50]} 18. bxc5 {[%emt 0:00:47]} bxc5 {[%emt 0:00:21] White must now prevent ...Rfe8.} ({Weaker is} 18... Qxc5 19. d4 Qc7 20. Ne5) 19. Rb1 {[%emt 0:02:32]} d4 {[%emt 0:02:50] And now ...Bxf3 would win.} 20. Qg5 {[%emt 0:02:06]} Bxf3 {[%emt 0:02:57]} 21. gxf3 {[%emt 0:00:20]} Bxh2+ {[%emt 0:01:00]} 22. Kg2 {[%emt 0:00:14] [#]} Ne3+ {[%emt 0:04:21]} ({Much less strong is} 22... dxc3 23. Qxf5 Qg3+ 24. Kh1 $16) 23. Bxe3 {[%emt 0:00:26]} dxe3 {[%emt 0:00:17] Dancing on a razor blade.} 24. Ne4 {[%emt 0:02:03]} Be5 {[%emt 0:00:20]} 25. Qxe3 {[%emt 0:07:39]} Nh5 {[%emt 0:02:49] Prevents f4.} 26. Qxc5 {[%emt 0:08:22]} Nf4+ {[%emt 0:00:24]} 27. Kh1 {[%emt 0:00:18] [#]} (27. Kg1 $17 Qxc5+ 28. Nxc5) 27... Qd7 $1 {[%emt 0:00:58]} ({Inferior is} 27... Nxd3 28. Qxc7 Bxc7 29. Rfd1 $15) 28. Nf2 {[%emt 0:03:51] Prevents Qh3+.} (28. Qg1 Rab8 29. Qh2) 28... Qf5 {[%emt 0:05:59] ( -> ...Qh5+). Black is clearly winning.} 29. Ng4 {[%emt 0:01:10]} Qh5+ {[%emt 0:00:08]} 30. Kg1 {[%emt 0:00:50]} Qh3 {[%emt 0:00:11][%csl Gf4][%cal Rh3g2]} 31. Qf2 {[%emt 0:04:03] Inhibits Qg2+.} Rae8 {[%emt 0:00:35]} 32. Nxe5 {[%emt 0:02:45]} Rxe5 {[%emt 0:00:10]} 33. Qh2 {[%emt 0:00:53]} Ne2+ {[%emt 0:00:07]} 34. Kh1 {[%emt 0:01:14]} Ng3+ {[%emt 0:00:08]} 35. Kg1 {[%emt 0:00:08]} Qxh2+ {[%emt 0:00:07] White did not feel at home in the position after the opening.  Weighted Error Value: White=0.54/Black=0.15 (very precise)} 0-1

[Event "IV Estrellas 2022"]
[Site "La Palma"]
[Date "2022.08.06"]
[Round "1.5"]
[White "Antic, Dejan"]
[Black "Camps Abadia, Arnau"]
[Result "1-0"]
[ECO "A87"]
[WhiteElo "2452"]
[BlackElo "1782"]
[Annotator "TA"]
[PlyCount "79"]
[EventDate "2022.08.06"]
[EventType "swiss"]
[EventCountry "ESP"]
[SourceTitle "playchess.com"]
[Source "ChessBase"]
[SourceQuality "1"]
[TimeControl "5400+30"]

{[%evp 20,79,18,19,36,23,29,28,26,26,31,24,50,50,50,50,50,29,33,28,38,-45,-39,-38,80,79,70,85,66,75,97,95,97,69,70,60,44,35,99,95,90,105,102,96,264,232,234,269,272,248,555,551,545,542,537,515,500,415,458,447,1007,966]} 1. d4 {[%emt 0:00:06]} e6 {[%emt 0:00:10]} 2. c4 {[%emt 0:01:17]} f5 {[%emt 0:00:19]} 3. g3 {[%emt 0:00:29]} Nf6 {[%emt 0:00:07]} 4. Bg2 {[%emt 0:00:07]} g6 {[%emt 0:00:10]} 5. Nc3 {[%emt 0:00:21]} Bg7 {[%emt 0:00:09]} 6. Nf3 {[%emt 0:01:45]} O-O {[%emt 0:00:10]} 7. O-O {[%emt 0:00:08]} d6 {[%emt 0:00:15]} 8. b3 {[%emt 1:30:17]} Nc6 {[%emt 0:01:38]} 9. Bb2 {[%emt 0:00:00]} Ne4 {[%emt 0:07:47]} 10. Rc1 {[%emt 0:00:00]} Nxc3 {[%emt 0:05:18]} 11. Bxc3 {[%emt 0:00:00]} e5 {[%emt 0:08:49] A87: Dutch Defence: Leningrad System: 5 Nf3.} 12. dxe5 {[%emt 0:00:00]} dxe5 {[%emt 0:00:06]} 13. Qd5+ {[%emt 0:00:00]} Kh8 {[%emt 0:00:24] White has an edge.} 14. Qxd8 {[%emt 0:00:00]} Rxd8 {[%emt 0:01:18]} 15. Ng5 {[%emt 0:00:00] aiming for Bxc6.} Rf8 {[%emt 0:07:35]} 16. Bxc6 {[%emt 0:00:00]} bxc6 {[%emt 0:00:05]} 17. Rfd1 {[%emt 0:00:00][%cal Od1d8] [#]} a5 $146 {[%emt 0:19:51]} ({Predecessor:} 17... Kg8 18. Nf3 Re8 19. Ba5 f4 20. Bxc7 Bg4 21. Kg2 Rac8 22. Ba5 Bh6 23. h3 Bxf3+ 24. exf3 fxg3 {1-0 (42) Saric,A (2505)-Zelic,M (2319) Zadar 2008}) 18. f4 {[%emt 0:00:00]} e4 {[%emt 0:01:39] [#]} 19. Nf7+ {[%emt 0:00:00]} Kg8 {[%emt 0:00:59]} 20. Nd8 {[%emt 0:00:00]} (20. Bxg7 $14 Rxf7 21. Be5) 20... Bxc3 $15 {[%emt 0:07:21]} 21. Rxc3 {[%emt 0:00:00]} Bd7 {[%emt 0:04:29]} 22. Nb7 {[%emt 0:00:00] White is much more active.} Be6 {[%emt 0:01:32]} 23. Kf2 {[%emt 0:00:00]} Kf7 {[%emt 0:01:42]} 24. Nc5 {[%emt 0:00:00]} Rfd8 {[%emt 0:01:30]} 25. Rcc1 {[%emt 0:00:00]} Rab8 {[%emt 0:02:52]} 26. Ke3 {[%emt 0:00:00]} Rd6 {[%emt 0:00:38]} 27. Rd4 {[%emt 0:00:00]} (27. Nxe6 $6 Kxe6 28. Rxd6+ cxd6 $11) 27... Ke7 {[%emt 0:07:37]} 28. Rcd1 {[%emt 0:00:00]} Rb6 {[%emt 0:02:05]} (28... Rg8 $14) 29. g4 $16 {[%emt 0:00:00]} Rb8 {[%emt 0:02:14]} 30. gxf5 gxf5 {[%emt 0:00:08] [#]} 31. Rg1 $1 {[%emt 0:00:00]} Rf8 $2 {[%emt 0:03:00] This costs Black the game.} (31... Kf6 $16 {was called for.}) 32. Nb7 $18 {[%emt 0:00:00]} ({Don't play} 32. Rg7+ $6 Rf7 33. Rg8 Rf6 34. Nxe6 Kxe6 $18) 32... Rxd4 {[%emt 0:01:10]} 33. Kxd4 {[%emt 0:00:00][%mdl 4096] Endgame KRB-KRN} Kf6 {[%emt 0:00:16]} 34. Kc5 {[%emt 0:00:00]} ({Don't do} 34. Nxa5 $6 Ra8 $16) 34... Bc8 $2 {[%emt 0:04:05]} (34... a4 35. Kxc6 (35. bxa4 Ra8 $16) 35... Ra8 36. Kxc7 axb3 37. axb3 Ra2) 35. Nxa5 {[%emt 0:00:00]} Rd8 {[%emt 0:00:25]} 36. Nxc6 {[%emt 0:00:00]} Rd2 {[%emt 0:00:04]} 37. Nd4 {[%emt 0:00:00] Strongly threatening Ra1.} Rxa2 {[%emt 0:00:49]} 38. Rg8 {[%emt 0:00:00]} Be6 {[%emt 0:02:10]} 39. Rf8+ {[%emt 0:00:00]} Kg7 {[%emt 0:00:37]} (39... Ke7 $142 40. Rh8 Bf7 41. Rxh7 Kf6) 40. Nxe6+ {[%emt 0:00:00] Weighted Error Value: White=0.12 (very precise) /Black=0.31} 1-0

[Event "IV Estrellas 2022"]
[Site "La Palma"]
[Date "2022.08.06"]
[Round "1.6"]
[White "Pleschke, Julius Jonas"]
[Black "Martinez Reyes, Pedro Ramon"]
[Result "0-1"]
[ECO "D02"]
[WhiteElo "1685"]
[BlackElo "2408"]
[Annotator "TA"]
[PlyCount "76"]
[EventDate "2022.08.06"]
[EventType "swiss"]
[EventCountry "ESP"]
[SourceTitle "playchess.com"]
[Source "ChessBase"]
[SourceQuality "1"]
[TimeControl "5400+30"]

{[%evp 9,76,14,18,-2,27,12,23,27,34,32,43,43,50,31,37,37,28,31,158,155,164,162,168,106,125,127,125,89,97,113,148,141,137,123,171,154,177,164,144,156,220,179,170,40,108,33,30,0,0,0,0,-43,0,-478,-489,-481,-468,-461,-455,-409,-291,-449,-363,-29988,-29989,-29989,-29990,-29995,-29991]} 1. d4 {[%emt 0:00:04]} d5 {[%emt 0:00:24]} 2. Nf3 {[%emt 0:00:36]} Nc6 {[%emt 0:00:23]} 3. Bf4 {[%emt 0:04:49]} Bg4 {[%emt 0:02:45]} 4. e3 {[%emt 0:01:03]} e6 {[%emt 0:00:23]} 5. c3 {[%emt 0:01:12]} Bd6 {[%emt 0:00:27]} 6. Bg3 {[%emt 0:03:43] D02: 1 d4 d5 2 Nf3 sidelines, including 2...Nf6 3 g3 and 2...Nf6 3 Bf4.} Nge7 {[%emt 0:03:30]} 7. Be2 {[%emt 0:05:20]} O-O {[%emt 0:00:42]} 8. Nbd2 {[%emt 0:00:51] White has an edge.} Nf5 {[%emt 0:00:07] [#]} 9. e4 $146 {[%emt 1:17:22]} ({Predecessor:} 9. Qc2 Nce7 10. Bxd6 cxd6 11. h3 Bxf3 12. gxf3 Ng6 13. O-O-O b5 14. e4 Nfh4 15. exd5 {0-1 (63) Camacho,G (2305)-Kalajzic,I (2112) Chess.com INT 2021}) 9... Bxg3 {[%emt 0:09:40]} 10. hxg3 {[%emt 0:00:00]} dxe4 {[%emt 0:00:02]} 11. Nxe4 {[%emt 0:00:00]} Qd5 {[%emt 0:00:02]} 12. Nfd2 {[%emt 0:00:00]} Bxe2 {[%emt 0:02:32]} 13. Qxe2 {[%emt 0:00:00]} Ncxd4 {[%emt 0:01:11]} 14. cxd4 $16 {[%emt 0:00:00]} Nxd4 {[%emt 0:00:11]} 15. Qd3 {[%emt 0:00:00][%cal Oe4f6] Nf6+! would kill now.} f5 {[%emt 0:00:14]} 16. Nc3 {[%emt 0:00:00]} (16. Ng5 $18) 16... Qxg2 {[%emt 0:00:58]} 17. O-O-O {[%emt 0:00:00]} Rad8 {[%emt 0:00:37][%cal Od4b3] Hoping for ...Nb3+!} (17... Qxf2 $2 18. Rhf1 Ne2+ 19. Nxe2 $18) 18. Qf1 {[%emt 0:00:00]} Qc6 {[%emt 0:01:16]} 19. Kb1 {[%emt 0:00:00]} b5 {[%emt 0:08:15]} 20. Nb3 {[%emt 0:00:00]} (20. Qh3 $6 h6 $14) 20... Nxb3 {[%emt 0:28:31]} 21. axb3 {[%emt 0:00:00]} Rxd1+ {[%emt 0:00:38]} (21... a6 $16) 22. Qxd1 $18 {[%emt 0:00:00]} (22. Nxd1 $6 Rd8 $11) 22... b4 {[%emt 0:00:01] [#]} 23. Na4 {[%emt 0:00:00]} f4 {[%emt 0:03:21]} 24. g4 {[%emt 0:00:00]} e5 {[%emt 0:07:33]} (24... Qd5 $16 25. Qxd5 exd5) 25. Ka2 {[%emt 0:00:00]} e4 {[%emt 0:11:04]} 26. Qf1 {[%emt 0:00:00]} (26. Re1 $18) 26... Rd8 {[%emt 0:03:33]} (26... Re8 $14) 27. Qg2 {[%emt 0:01:02]} ({White should try} 27. Qh3 $16 Qg6 28. Re1) 27... Rd3 $14 {[%emt 0:02:51]} 28. Qh2 {[%emt 0:02:04]} h6 {[%emt 0:00:19] Active counter play!} ({Don't do} 28... Qd5 29. Qxh7+ Kf7 30. Ka1 Rd1+ 31. Ka2 (31. Rxd1 Qxd1+ 32. Ka2 Qd5 $16) 31... Rxh1 32. Qxh1 $16) 29. Qh5 {[%emt 0:00:51][%cal Oh1c1]} Rd5 {[%emt 0:03:22]} 30. Rc1 {[%emt 0:02:59]} Qe6 {[%emt 0:01:00]} 31. Qh2 {[%emt 0:00:09][%mdl 8192]} (31. Nc5 $11 Qc6 32. Na4 Rxh5 33. Rxc6) 31... Ra5 $19 {[%emt 0:00:36]} 32. Qxf4 {[%emt 0:03:09]} Rxa4+ $1 {[%emt 0:00:08][%mdl 4096] Endgame KQR-KQR} 33. Kb1 {[%emt 0:00:04]} Qxb3 {[%emt 0:00:24] ( -> ...Qd3+)} 34. Qxc7 {[%emt 0:01:19] Strongly threatening Qc8+.} Kh7 {[%emt 0:02:28] aiming for ...Qd3+.} 35. Qc8 {[%emt 0:00:36]} (35. Qc4 $142 Qd3+ 36. Qxd3 exd3 37. b3) 35... Ra5 {[%emt 0:00:42] Threatens to win with ...Qa2+.} 36. Rc7 $2 {[%emt 0:00:43] [#]} (36. Qc4 $19 Qf3 37. Re1) 36... Qd3+ {[%emt 0:00:07] Black mates.} 37. Rc2 {[%emt 0:00:30]} b3 {[%emt 0:00:07][%cal Bb4b3,Bb3c2][%mdl 32]} 38. Qc3 {[%emt 0:00:29]} bxc2+ {[%emt 0:00:10] What a bad dream for White.  Weighted Error Value: White=0.63/Black=0.28 (precise)} 0-1